fUST/lending_fUST_20240813
["ID","MTS","AMOUNT","RATE_DAILY","PERIOD"]
[334777112,1723549847943,-500.0,0.00013698,2]
[334777113,1723549847952,-500.0,0.00013698,2]
[334777114,1723549847962,-500.0,0.00013698,2]
[334777115,1723549847972,-500.0,0.00013698,2]
[334777116,1723549847981,-500.0,0.00013698,2]
[334777117,1723549847991,-504.932046,0.00013698,2]
[334777118,1723549848001,-500.0,0.00013698,2]
[334777119,1723549848010,-500.0,0.00013698,2]
[334777120,1723549848020,-501.44520048,0.00013698,2]
[334777121,1723549848029,-500.0,0.00013698,2]
[334777122,1723549848038,-500.0,0.00013698,2]
[334777123,1723549848048,-571.7495772,0.00013698,2]
[334777124,1723549848057,-504.4672631,0.00013698,2]
[334777125,1723549848067,-500.0,0.00013698,2]
[334777126,1723549848076,-500.0,0.00013698,2]
[334777127,1723549848085,-472.37504085,0.00013698,2]
[334777128,1723549848094,-500.0,0.00013698,2]
[334777129,1723549848103,-503.73544608,0.00013698,2]
[334777130,1723549848113,-500.0,0.00013698,2]
[334777131,1723549848122,-547.04,0.00013698,2]
[334777132,1723549848131,-500.0,0.00013698,2]
[334777133,1723549848141,-1348.56,0.00013698,2]
[334777134,1723549848151,-519.49,0.00013698,2]
[334777135,1723549848161,-1644.45,0.00013698,2]
[334777136,1723549848171,-1763.76,0.00013698,2]
[334777137,1723549848182,-500.0,0.00013698,2]
[334777138,1723549848191,-1144.44,0.00013698,2]
[334777139,1723549848201,-500.0,0.00013698,2]
[334777140,1723549848212,-1465.99,0.00013698,2]
[334777141,1723549848223,-500.0,0.00013698,2]
[334777142,1723549848232,-507.34804136,0.00013698,2]
[334777143,1723549848241,-2682.14,0.00013698,2]
[334777144,1723549848250,-500.0,0.00013698,2]
[334777145,1723549848261,-751.08,0.00013698,2]
[334777146,1723549848271,-504.52624612,0.00013698,2]
[334777147,1723549848281,-500.0,0.00013698,2]
[334777148,1723549848290,-1317.61,0.00013698,2]
[334777149,1723549848300,-739.6,0.00013698,2]
[334777150,1723549848309,-539.85908622,0.00013698,2]
[334777151,1723549848318,-500.0,0.00013698,2]
[334777152,1723549848328,-500.0,0.00013698,2]
[334777153,1723549848337,-751.65,0.00013698,2]
[334777154,1723549848347,-500.0,0.00013698,2]
[334777155,1723549848357,-852.21,0.00013698,2]
[334777156,1723549848366,-6470.14,0.00013698,2]
[334777157,1723549848376,-500.0,0.00013698,2]
[334777158,1723549848385,-500.0,0.00013698,2]
[334777159,1723549848394,-500.0,0.00013698,2]
[334777160,1723549848404,-679.18,0.00013698,2]
[334777161,1723549848413,-500.0,0.00013698,2]
[334777162,1723549848423,-500.0,0.00013698,2]
[334777163,1723549848432,-500.0,0.00013698,2]
[334777164,1723549848441,-500.0,0.00013698,2]
[334777165,1723549848451,-500.0,0.00013698,2]
[334777166,1723549848461,-500.0,0.00013698,2]
[334777167,1723549848470,-506.3500057,0.00013698,2]
[334777168,1723549848627,-2006.2,0.00013698,2]
[334777169,1723549848638,-1119.11,0.00013698,2]
[334777170,1723549848648,-798.31,0.00013698,2]
[334777171,1723549848658,-500.0,0.00013698,2]
[334777172,1723549848668,-500.0,0.00013698,2]
[334777173,1723549848678,-562.76371784,0.00013698,2]
[334777174,1723549848688,-500.0,0.00013698,2]
[334777175,1723549848697,-500.0,0.00013698,2]
[334777176,1723549848707,-500.0,0.00013698,2]
[334777177,1723549848719,-980.38,0.00013698,2]
[334777178,1723549848729,-538.15,0.00013698,2]
[334777179,1723549848741,-809.12,0.00013698,2]
[334777180,1723549848751,-500.0,0.00013698,2]
[334777181,1723549848760,-500.0,0.00013698,2]
[334777182,1723549848770,-500.0,0.00013698,2]
[334777183,1723549848779,-510.22858019,0.00013698,2]
[334777184,1723549848788,-515.05521888,0.00013698,2]
[334777185,1723549848798,-500.0,0.00013698,2]
[334777186,1723549848807,-500.0,0.00013698,2]
[334777187,1723549848817,-1508.69,0.00013698,2]
[334777188,1723549848826,-500.0,0.00013698,2]
[334777189,1723549848836,-500.0,0.00013698,2]
[334777190,1723549848845,-500.0,0.00013698,2]
[334777191,1723549848855,-502.28690449,0.00013698,2]
[334777192,1723549848864,-500.0,0.00013698,2]
[334777193,1723549848874,-500.0,0.00013698,2]
[334777194,1723549848883,-500.0,0.00013698,2]
[334777195,1723549848894,-500.0,0.00013698,2]
[334777196,1723549848903,-500.0,0.00013698,2]
[334777197,1723549848913,-1078.05,0.00013698,2]
[334777198,1723549848922,-692.46,0.00013698,2]
[334777199,1723549848932,-883.58,0.00013698,2]
[334777200,1723549848943,-871.31,0.00013698,2]
[334777201,1723549848953,-500.0,0.00013698,2]
[334777202,1723549848963,-505.77318886,0.00013698,2]
[334777203,1723549848972,-500.0,0.00013698,2]
[334777204,1723549848982,-500.0,0.00013698,2]
[334777205,1723549848992,-500.0,0.00013698,2]
[334777206,1723549849001,-500.0,0.00013698,2]
[334777207,1723549849011,-731.68,0.00013698,2]
[334777208,1723549849020,-500.0,0.00013698,2]
[334777209,1723549849030,-500.0,0.00013698,2]
[334777210,1723549849040,-500.0,0.00013698,2]
[334777211,1723549849050,-500.0,0.00013698,2]
[334777212,1723549849060,-1230.89,0.00013698,2]
[334777213,1723549849069,-4400.15,0.00013698,2]
[334777214,1723549849079,-522.9,0.00013698,2]
[334777215,1723549849088,-6060.75,0.00013698,2]
[334777216,1723549849097,-500.0,0.00013698,2]
[334777217,1723549849107,-500.0,0.00013698,2]
[334777218,1723549849117,-1128.2,0.00013698,2]
[334777219,1723549849126,-846.7,0.00013698,2]
[334777220,1723549849135,-500.0,0.00013698,2]
[334777221,1723549849145,-500.0,0.00013698,2]
[334777222,1723549849155,-1210.24,0.00013698,2]
[334777223,1723549849164,-500.0,0.00013698,2]
[334777224,1723549849174,-503.56450761,0.00013698,2]
[334777225,1723549849187,-500.0,0.00013698,2]
[334777226,1723549849197,-1039.23,0.00013698,2]
[334777227,1723549849207,-500.0,0.00013698,2]
[334777228,1723549849217,-1092.56,0.00013698,2]
[334777229,1723549849226,-500.0,0.00013698,2]
[334777230,1723549849236,-523.64237157,0.00013698,2]
[334777231,1723549849246,-1095.67,0.00013698,2]
[334777232,1723549849256,-507.79661399,0.00013698,2]
[334777233,1723549849266,-1876.08,0.00013698,2]
[334777234,1723549849275,-500.0,0.00013698,2]
[334777235,1723549849285,-500.0,0.00013698,2]
[334777236,1723549849295,-3195.3,0.00013698,2]
[334777237,1723549849304,-714.8,0.00013698,2]
[334777238,1723549849314,-500.0,0.00013698,2]
[334777239,1723549849323,-285.46548247,0.00013698,2]
[334777240,1723549849333,-511.74447353,0.00013698,2]
[334777241,1723549849342,-510.71182565,0.00013698,2]
[334777242,1723549849352,-500.0,0.00013698,2]
[334777243,1723549849361,-516.59155626,0.00013698,2]
[334777244,1723549849372,-991.08,0.00013698,2]
[334777245,1723549849382,-3582.61,0.00013698,2]
[334777246,1723549849391,-507.60818199,0.00013698,2]
[334777247,1723549849400,-615.48,0.00013698,2]
[334777248,1723549849410,-639.42,0.00013698,2]
[334777249,1723549849419,-905.06,0.00013698,2]
[334777250,1723549849429,-500.0,0.00013698,2]
[334777251,1723549849439,-500.0,0.00013698,2]
[334777252,1723549849449,-500.0,0.00013698,2]
[334777253,1723549849459,-411.93110367,0.00013698,2]
[334777254,1723549849468,-1347.89,0.00013698,2]
[334777255,1723549849477,-244.40232907,0.00013698,2]
[334777256,1723549849487,-500.0,0.00013698,2]
[334777257,1723549849497,-500.0,0.00013698,2]
[334777258,1723549849507,-661.05,0.00013698,2]
[334777259,1723549849516,-500.0,0.00013698,2]
[334777260,1723549849526,-500.0,0.00013698,2]
[334777261,1723549849535,-1674.66,0.00013698,2]
[334777262,1723549849544,-500.0,0.00013698,2]
[334777263,1723549849553,-500.0,0.00013698,2]
[334777264,1723549849562,-505.70706712,0.00013698,2]
[334777265,1723549849572,-500.0,0.00013698,2]
[334777266,1723549849581,-515.6222114,0.00013698,2]
[334777267,1723549849591,-447.13613752,0.00013698,2]
[334777312,1723551031740,-1011.0,9.998e-05,2]
[334777314,1723551031752,-300.0,9.998e-05,2]
[334777316,1723551031763,-170.0,9.998e-05,2]
[334777319,1723551031774,-850.36837131,9.999e-05,2]
[334777321,1723551031785,-403.97807828,9.999e-05,2]
[334777323,1723551031795,-180.63105164,9.999e-05,2]
[334777325,1723551031807,-665.04001235,9.999e-05,2]
[334777327,1723551031817,-154.76012181,9.999e-05,2]
[334777329,1723551031827,-196.5840757,9.999e-05,2]
[334777331,1723551031836,-309.48934258,9.999e-05,2]
[334777333,1723551031846,-192.35113643,9.999e-05,2]
[334777335,1723551031856,-189.9631639,9.999e-05,2]
[334777337,1723551031865,-244.29658029,9.999e-05,2]
[334777339,1723551031875,-193.44769794,9.999e-05,2]
[334777342,1723551031885,-155.27455478,9.999e-05,2]
[334777344,1723551031895,-157.07817899,9.999e-05,2]
[334777346,1723551031905,-205.30859179,9.999e-05,2]
[334777348,1723551031917,-636.72640188,9.999e-05,2]
[334777350,1723551031927,-219.0231797,9.999e-05,2]
[334777352,1723551031938,-207.10426387,9.999e-05,2]
[334777354,1723551031949,-140.29526274,9.999e-05,2]
[334777394,1723551038054,-25.44260906,9.999e-05,2]
[334777395,1723551038065,-187.16700505,9.999e-05,2]
[334777396,1723551038076,-209.42836987,9.999e-05,2]
[334777397,1723551038087,-320.1315387,9.999e-05,2]
[334777398,1723551038098,-154.77557542,9.999e-05,2]
[334777399,1723551038108,-159.42310464,9.999e-05,2]
[334777400,1723551038118,-155.03246954,0.0001,2]
[334777401,1723551038128,-24900.0,0.00010545,2]
[334777402,1723551038139,-420.0,0.00010998,2]
[334777403,1723551038148,-200.511702,0.00011329,2]
[334777404,1723551038161,-200.511702,0.0001136,2]
[334777405,1723551038171,-200.511702,0.00011392,2]
[334777406,1723551038183,-200.511702,0.00011423,2]
[334777407,1723551038194,-200.511702,0.00011454,2]
[334777408,1723551038204,-200.511702,0.00011485,2]
[334777409,1723551038214,-200.511702,0.00011516,2]
[334777410,1723551038224,-200.511702,0.00011547,2]
[334777411,1723551038234,-200.511702,0.00011578,2]
[334777412,1723551038245,-200.511702,0.00011609,2]
[334777413,1723551038255,-200.511702,0.0001164,2]
[334777414,1723551038265,-200.511702,0.00011671,2]
[334777415,1723551038275,-200.511702,0.00011702,2]
[334777416,1723551038284,-200.511702,0.00011733,2]
[334777417,1723551038294,-200.511702,0.00011764,2]
[334777418,1723551038304,-200.511702,0.00011795,2]
[334777419,1723551038314,-200.511702,0.00011827,2]
[334777420,1723551038323,-200.511702,0.00011858,2]
[334777421,1723551038333,-200.511702,0.00011889,2]
[334777422,1723551038343,-200.511702,0.0001192,2]
[334777423,1723551038353,-190.0,0.00012098,2]
[334777424,1723551038364,-153.0,0.00013205,2]
[334777425,1723551038374,-153.0,0.00013205,2]
[334777426,1723551038384,-153.0,0.00013205,2]
[334777427,1723551038394,-153.0,0.00013205,2]
[334777428,1723551038404,-153.0,0.00013205,2]
[334777429,1723551038414,-153.0,0.00013205,2]
[334777430,1723551038424,-153.0,0.00013205,2]
[334777431,1723551038437,-153.0,0.00013205,2]
[334777432,1723551038447,-153.0,0.00013205,2]
[334777433,1723551038456,-5323.40502986,0.00013543,2]
[334777434,1723551038465,-150.0,0.00013563,2]
[334777435,1723551038475,-150.0,0.00013563,2]
[334777436,1723551038484,-508.0,0.00013563,2]
[334777437,1723551038495,-1413.0,0.00013563,2]
[334777438,1723551038508,-52175.68554993,0.00013564,2]
[334777439,1723551038717,-10198.68598947,0.00013564,2]
[334777440,1723551038728,-64765.03545696,0.00013574,2]
[334777441,1723551038738,-1695.76062588,0.00013598,2]
[334777442,1723551038747,-1746.54404419,0.00013598,2]
[334777443,1723551038757,-1746.54404416,0.00013598,2]
[334777444,1723551038767,-1746.54404416,0.00013599,2]
[334777445,1723551038776,-1746.54404416,0.00013599,2]
[334777446,1723551038785,-1746.54404416,0.00013599,2]
[334777447,1723551038795,-200.0,0.00013673,2]
[334777448,1723551038804,-200.0,0.00013673,2]
[334777449,1723551038814,-200.0,0.00013673,2]
[334777450,1723551038824,-8048.35701183,0.00013688,2]
[334777451,1723551038834,-249497.486157,0.00013688,2]
[334777452,1723551038844,-503.80614927,0.00013698,2]
[334777453,1723551038854,-610.02317688,0.00013698,2]
[334777454,1723551038864,-500.0,0.00013698,2]
[334777455,1723551038874,-500.0,0.00013698,2]
[334777456,1723551038884,-500.0,0.00013698,2]
[334777457,1723551038893,-500.0,0.00013698,2]
[334777458,1723551038904,-200.0,0.00013698,2]
[334777459,1723551038914,-406.82162163,0.00013698,2]
[334777460,1723551038924,-500.0,0.00013698,2]
[334777461,1723551038935,-500.0,0.00013698,2]
[334777462,1723551038945,-485.08655144,0.00013698,2]
[334777463,1723551038955,-500.0,0.00013698,2]
[334777464,1723551038965,-243.18636395,0.00013698,2]
[334777465,1723551038975,-500.0,0.00013698,2]
[334777466,1723551038985,-500.0,0.00013698,2]
[334777467,1723551038995,-500.0,0.00013698,2]
[334777468,1723551039005,-500.0,0.00013698,2]
[334777469,1723551039015,-500.0,0.00013698,2]
[334777470,1723551039025,-500.0,0.00013698,2]
[334777471,1723551039034,-500.0,0.00013698,2]
[334777472,1723551039044,-500.0,0.00013698,2]
[334777473,1723551039055,-307.10538872,0.00013698,2]
[334777474,1723551039064,-500.0,0.00013698,2]
[334777475,1723551039074,-500.0,0.00013698,2]
[334777476,1723551039083,-1670.74719108,0.00013698,2]
[334777477,1723551039094,-310.21954595,0.00013698,2]
[334777478,1723551039104,-500.00000001,0.00013698,2]
[334777479,1723551039114,-293.00865728,0.00013698,2]
[334777480,1723551039124,-406.53277015,0.00013698,2]
[334777481,1723551039134,-216.38793198,0.00013698,2]
[334777482,1723551039144,-716.05,0.00013698,2]
[334777483,1723551039154,-500.0,0.00013698,2]
[334777484,1723551039164,-270.26495792,0.00013698,2]
[334777485,1723551039173,-500.0,0.00013698,2]
[334777486,1723551039184,-500.0,0.00013698,2]
[334777487,1723551039194,-500.0,0.00013698,2]
[334777488,1723551039204,-265.27786743,0.00013698,2]
[334777489,1723551039214,-500.0,0.00013698,2]
[334777490,1723551039224,-500.0,0.00013698,2]
[334777491,1723551039234,-500.0,0.00013698,2]
[334777492,1723551039244,-500.0,0.00013698,2]
[334777493,1723551039254,-500.0,0.00013698,2]
[334777494,1723551039264,-500.0,0.00013698,2]
[334777495,1723551039274,-500.0,0.00013698,2]
[334777496,1723551039283,-500.0,0.00013698,2]
[334777497,1723551039293,-500.0,0.00013698,2]
[334777500,1723551039468,-500.0,0.00013698,2]
[334777501,1723551039478,-500.0,0.00013698,2]
[334777502,1723551039488,-509.08617267,0.00013698,2]
[334777503,1723551039498,-505.62042349,0.00013698,2]
[334777504,1723551039509,-504.12316771,0.00013698,2]
[334777506,1723551039520,-500.0,0.00013698,2]
[334777507,1723551039530,-500.0,0.00013698,2]
[334777508,1723551039539,-500.0,0.00013698,2]
[334777509,1723551039554,-500.0,0.00013698,2]
[334777510,1723551039563,-500.0,0.00013698,2]
[334777511,1723551039573,-500.0,0.00013698,2]
[334777512,1723551039582,-470.61676239,0.00013698,2]
[334777513,1723551039592,-500.0,0.00013698,2]
[334777514,1723551039602,-564.69314424,0.00013698,2]
[334777515,1723551039611,-500.0,0.00013698,2]
[334777516,1723551039622,-500.0,0.00013698,2]
[334777518,1723551039632,-500.0,0.00013698,2]
[334777520,1723551039642,-500.0,0.00013698,2]
[334777521,1723551039652,-500.0,0.00013698,2]
[334777522,1723551039662,-500.0,0.00013698,2]
[334777523,1723551039672,-500.0,0.00013698,2]
[334777525,1723551039681,-500.0,0.00013698,2]
[334777526,1723551039692,-500.0,0.00013698,2]
[334777527,1723551039701,-500.0,0.00013698,2]
[334777528,1723551039710,-500.0,0.00013698,2]
[334777529,1723551039721,-500.0,0.00013698,2]
[334777530,1723551039731,-500.0,0.00013698,2]
[334777531,1723551039749,-500.0,0.00013698,2]
[334777532,1723551039761,-353.68,0.00013698,2]
[334777533,1723551039771,-221.25196166,0.00013698,2]
[334777534,1723551039781,-507.02549008,0.00013698,2]
[334777535,1723551039791,-500.0,0.00013698,2]
[334777536,1723551039801,-500.0,0.00013698,2]
[334777537,1723551039811,-500.0,0.00013698,2]
[334777538,1723551039821,-500.83788809,0.00013698,2]
[334777539,1723551039832,-500.0,0.00013698,2]
[334777540,1723551039842,-500.0,0.00013698,2]
[334777541,1723551039852,-500.0,0.00013698,2]
[334777542,1723551039862,-518.39715278,0.00013698,2]
[334777543,1723551039872,-305.34488994,0.00013698,2]
[334777544,1723551039883,-556.74602454,0.00013698,2]
[334777545,1723551039893,-500.0,0.00013698,2]
[334777546,1723551039904,-506.14452016,0.00013698,2]
[334777547,1723551039914,-500.0,0.00013698,2]
[334777548,1723551039924,-209.78463677,0.00013698,2]
[334777549,1723551039936,-500.0,0.00013698,2]
[334777551,1723551039947,-500.0,0.00013698,2]
[334777552,1723551039956,-500.0,0.00013698,2]
[334777553,1723551039966,-500.0,0.00013698,2]
[334777554,1723551039976,-500.0,0.00013698,2]
[334777555,1723551039986,-492.82389326,0.00013698,2]
[334777556,1723551039996,-500.0,0.00013698,2]
[334777557,1723551040006,-501.68738157,0.00013698,2]
[334777558,1723551040016,-500.0,0.00013698,2]
[334777559,1723551040026,-510.28057163,0.00013698,2]
[334777560,1723551040036,-500.0,0.00013698,2]
[334777561,1723551040046,-500.0,0.00013698,2]
[334777562,1723551040056,-500.0,0.00013698,2]
[334777563,1723551040066,-501.21147258,0.00013698,2]
[334777564,1723551040076,-503.69358324,0.00013698,2]
[334777565,1723551040087,-500.0,0.00013698,2]
[334777566,1723551040097,-503.59029948,0.00013698,2]
[334777567,1723551040107,-507.23024464,0.00013698,2]
[334777568,1723551040117,-500.0,0.00013698,2]
[334777569,1723551040127,-504.18759248,0.00013698,2]
[334777570,1723551040137,-504.48336683,0.00013698,2]
[334777571,1723551040147,-500.0,0.00013698,2]
[334777572,1723551040157,-500.0,0.00013698,2]
[334777573,1723551040168,-442.59706221,0.00013698,2]
[334777574,1723551040178,-791.6,0.00013698,2]
[334777575,1723551040190,-500.0,0.00013698,2]
[334777576,1723551040200,-500.41746684,0.00013698,2]
[334777577,1723551040210,-500.0,0.00013698,2]
[334777578,1723551040219,-505.81458611,0.00013698,2]
[334777579,1723551040229,-500.0,0.00013698,2]
[334777580,1723551040239,-500.0,0.00013698,2]
[334777581,1723551040249,-500.0,0.00013698,2]
[334777582,1723551040259,-500.0,0.00013698,2]
[334777583,1723551040270,-453.00711863,0.00013698,2]
[334777584,1723551040280,-502.53330438,0.00013698,2]
[334777585,1723551040290,-631.47498351,0.00013698,2]
[334777586,1723551040300,-205.60716256,0.00013698,2]
[334777587,1723551040310,-500.0,0.00013698,2]
[334777588,1723551040320,-500.0,0.00013698,2]
[334777589,1723551040330,-500.0,0.00013698,2]
[334777590,1723551040340,-500.0,0.00013698,2]
[334777591,1723551040350,-500.0,0.00013698,2]
[334777592,1723551040360,-504.02452338,0.00013698,2]
[334777593,1723551040370,-387.24154549,0.00013698,2]
[334777594,1723551040380,-501.14588562,0.00013698,2]
[334777595,1723551040390,-502.18574441,0.00013698,2]
[334777596,1723551040400,-548.94,0.00013698,2]
[334777597,1723551040411,-507.85492179,0.00013698,2]
[334777598,1723551040420,-500.0,0.00013698,2]
[334777599,1723551040432,-500.0,0.00013698,2]
[334777600,1723551040442,-500.0,0.00013698,2]
[334777601,1723551040452,-500.0,0.00013698,2]
[334777602,1723551040461,-500.0,0.00013698,2]
[334777603,1723551040472,-1148.29,0.00013698,2]
[334777604,1723551040482,-500.0,0.00013698,2]
[334777605,1723551040492,-503.33157854,0.00013698,2]
[334777606,1723551040501,-500.0,0.00013698,2]
[334777607,1723551040512,-529.95635248,0.00013698,2]
[334777608,1723551040521,-507.05239135,0.00013698,2]
[334777609,1723551040531,-500.0,0.00013698,2]
[334777610,1723551040541,-500.0,0.00013698,2]
[334777611,1723551040554,-500.0,0.00013698,2]
[334777612,1723551040564,-500.0,0.00013698,2]
[334777613,1723551040574,-500.0,0.00013698,2]
[334777614,1723551040584,-502.96860766,0.00013698,2]
[334777615,1723551040598,-500.0,0.00013698,2]
[334777616,1723551040609,-500.0,0.00013698,2]
[334777617,1723551040620,-782.48,0.00013698,2]
[334777618,1723551040632,-500.80143685,0.00013698,2]
[334777619,1723551040643,-1575.94,0.00013698,2]
[334777620,1723551040653,-508.13991064,0.00013698,2]
[334777621,1723551040663,-500.0,0.00013698,2]
[334777622,1723551040673,-506.55540525,0.00013698,2]
[334777623,1723551040684,-503.62100844,0.00013698,2]
[334777624,1723551040694,-500.0,0.00013698,2]
[334777625,1723551040704,-500.0,0.00013698,2]
[334777626,1723551040714,-504.58301167,0.00013698,2]
[334777627,1723551040724,-505.42697462,0.00013698,2]
[334777628,1723551040735,-500.0,0.00013698,2]
[334777629,1723551040746,-500.0,0.00013698,2]
[334777630,1723551040756,-510.6312989,0.00013698,2]
[334777631,1723551040766,-500.0,0.00013698,2]
[334777632,1723551040776,-522.86595952,0.00013698,2]
[334777633,1723551040786,-500.0,0.00013698,2]
[334777634,1723551040795,-500.0,0.00013698,2]
[334777635,1723551040805,-500.0,0.00013698,2]
[334777636,1723551040814,-502.93585482,0.00013698,2]
[334777637,1723551040824,-500.0,0.00013698,2]
[334777638,1723551040834,-506.45694896,0.00013698,2]
[334777639,1723551040844,-500.0,0.00013698,2]
[334777640,1723551040854,-500.0,0.00013698,2]
[334777641,1723551040863,-501.87082824,0.00013698,2]
[334777642,1723551040873,-500.0,0.00013698,2]
[334777643,1723551040883,-507.5474858,0.00013698,2]
[334777644,1723551040893,-507.20011329,0.00013698,2]
[334777645,1723551040903,-500.0,0.00013698,2]
[334777646,1723551040912,-505.71208401,0.00013698,2]
[334777647,1723551040922,-501.41158025,0.00013698,2]
[334777648,1723551040933,-500.0,0.00013698,2]
[334777649,1723551040942,-507.08564728,0.00013698,2]
[334777650,1723551040952,-500.0,0.00013698,2]
[334777651,1723551040961,-500.0,0.00013698,2]
[334777652,1723551040972,-500.0,0.00013698,2]
[334777653,1723551040981,-505.36064693,0.00013698,2]
[334777654,1723551040991,-502.4300017,0.00013698,2]
[334777655,1723551041001,-500.0,0.00013698,2]
[334777656,1723551041011,-456.58200291,0.00013698,2]
[334777657,1723551041020,-509.67446597,0.00013698,2]
[334777658,1723551041030,-518.15476045,0.00013698,2]
[334777659,1723551041040,-495.25153772,0.00013698,2]
[334777660,1723551041049,-503.91010508,0.00013698,2]
[334777661,1723551041060,-500.0,0.00013698,2]
[334777662,1723551041071,-505.60728801,0.00013698,2]
[334777663,1723551041081,-500.0,0.00013698,2]
[334777664,1723551041092,-500.0,0.00013698,2]
[334777665,1723551041102,-503.88429814,0.00013698,2]
[334777666,1723551041114,-609.17613278,0.00013698,2]
[334777667,1723551041123,-508.02086793,0.00013698,2]
[334777668,1723551041133,-500.0,0.00013698,2]
[334777669,1723551041144,-500.0,0.00013698,2]
[334777670,1723551041155,-509.34772993,0.00013698,2]
[334777671,1723551041165,-508.42683788,0.00013698,2]
[334777672,1723551041177,-500.0,0.00013698,2]
[334777673,1723551041196,-500.0,0.00013698,2]
[334777674,1723551041205,-405.86815292,0.00013698,2]
[334777675,1723551041426,-94.13184708,0.00013698,2]
[334777676,1723551041437,-405.5421487,0.00013698,2]
[334777677,1723551041447,-540.03,0.00013698,2]
[334777678,1723551041457,-502.67557011,0.00013698,2]
[334777679,1723551041466,-500.0,0.00013698,2]
[334777680,1723551041475,-508.85357317,0.00013698,2]
[334777681,1723551041485,-500.0,0.00013698,2]
[334777682,1723551041495,-500.0,0.00013698,2]
[334777683,1723551041504,-502.07385119,0.00013698,2]
[334777684,1723551041513,-500.0,0.00013698,2]
[334777685,1723551041523,-500.0,0.00013698,2]
[334777686,1723551041533,-507.86272351,0.00013698,2]
[334777687,1723551041543,-505.3329705,0.00013698,2]
[334777688,1723551041557,-500.0,0.00013698,2]
[334777689,1723551041567,-522.31,0.00013698,2]
[334777690,1723551041577,-500.0,0.00013698,2]
[334777691,1723551041587,-500.0,0.00013698,2]
[334777692,1723551041598,-500.0,0.00013698,2]
[334777693,1723551041608,-500.0,0.00013698,2]
[334777694,1723551041618,-500.0,0.00013698,2]
[334777695,1723551041629,-500.0,0.00013698,2]
[334777696,1723551041639,-278.20551426,0.00013698,2]
[334777697,1723551041649,-500.0,0.00013698,2]
[334777698,1723551041659,-500.0,0.00013698,2]
[334777699,1723551041669,-509.39277566,0.00013698,2]
[334777700,1723551041678,-500.0,0.00013698,2]
[334777701,1723551041692,-500.0,0.00013698,2]
[334777702,1723551041702,-500.0,0.00013698,2]
[334777703,1723551041712,-500.0,0.00013698,2]
[334777704,1723551041722,-500.0,0.00013698,2]
[334777705,1723551041732,-500.0,0.00013698,2]
[334777706,1723551041742,-500.0,0.00013698,2]
[334777707,1723551041752,-285.59539038,0.00013698,2]
[334777708,1723551041763,-500.0,0.00013698,2]
[334777709,1723551041775,-500.0,0.00013698,2]
[334777710,1723551041786,-500.0,0.00013698,2]
[334777711,1723551041796,-224.96456749,0.00013698,2]
[334777712,1723551041805,-500.0,0.00013698,2]
[334777713,1723551041816,-500.0,0.00013698,2]
[334777714,1723551041826,-500.0,0.00013698,2]
[334777715,1723551041836,-500.0,0.00013698,2]
[334777716,1723551041845,-508.7932602,0.00013698,2]
[334777717,1723551041855,-500.0,0.00013698,2]
[334777718,1723551041864,-500.0,0.00013698,2]
[334777719,1723551041874,-512.89114188,0.00013698,2]
[334777720,1723551041884,-500.0,0.00013698,2]
[334777721,1723551041894,-511.83291939,0.00013698,2]
[334777722,1723551041903,-504.47854233,0.00013698,2]
[334777723,1723551041913,-500.0,0.00013698,2]